bitfinex-derivatives/quotes_ETHF0:USTF0_20250926
["timestamp","ask_amount","ask_price","bid_price","bid_amount"]
[1758881185623,0.59581,3898.0,3897.4,0.267]
[1758881186030,0.46142,3897.9,3897.4,0.267]
[1758881186327,0.1344,3898.0,3897.4,0.267]
[1758881186328,0.46145,3897.6,3897.4,0.267]
[1758881186627,0.3352,3897.5,3897.4,0.267]
[1758881188333,0.3352,3897.5,3897.4,0.6103]
[1758881188527,0.1344,3897.5,3897.4,0.267]
[1758881188740,0.4696,3897.5,3897.4,0.267]
[1758881189730,0.4696,3897.5,3896.5,0.1263]
[1758881189924,0.3352,3896.9,3896.6,0.267]
[1758881190423,0.3208,3896.8,3896.5,0.46158]
[1758881190742,0.3208,3896.7,3896.6,0.5841]
[1758881191126,0.46155,3896.8,3896.6,0.5841]
[1758881191327,0.3208,3896.9,3896.7,0.3171]
[1758881191531,0.1344,3897.0,3896.7,0.3171]
[1758881191825,0.3208,3896.8,3896.7,0.3171]
[1758881192024,0.3208,3896.8,3896.7,0.5841]
[1758881192228,0.46158,3896.5,3896.3,0.44146009]
[1758881192434,0.3208,3896.4,3896.3,0.44146009]
[1758881192733,0.3208,3896.4,3895.7,0.3171]
[1758881192734,0.78246,3895.8,3895.7,40.019]
[1758881192928,0.3208,3895.3,3895.0,40.02]
[1758881193125,0.3208,3895.2,3894.8,0.46178]
[1758881193326,0.3208,3894.8,3894.1,0.46186]
[1758881193835,0.46178,3894.9,3894.1,40.8]
[1758881194027,0.3208,3894.8,3894.2,0.267]
[1758881194224,7.68090474,3895.0,3894.0,40.79896]
[1758881194225,0.3208,3894.4,3894.3,0.267]
[1758881195224,0.78263,3894.4,3894.0,0.3171]
[1758881195435,0.78263,3894.4,3893.7,0.46191]
[1758881195436,0.46184,3894.3,3894.1,0.267]
[1758881195727,0.1319,3894.0,3893.8,40.8]
[1758881195929,0.1319,3894.0,3893.6,0.46929052]
[1758881196134,0.3208,3894.0,3893.9,0.267]
[1758881196335,0.3208,3893.9,3893.6,0.00738052]
[1758881196526,0.1319,3894.0,3893.7,0.267]
[1758881196726,0.1319,3894.0,3893.8,0.267]
[1758881196926,0.1319,3894.0,3893.6,0.00738052]
[1758881197129,0.4527,3894.0,3893.6,0.00738052]
[1758881197333,0.3208,3893.7,3893.6,0.00738052]
[1758881197635,0.3208,3893.7,3893.6,0.27438052]
[1758881197836,0.3208,3894.0,3893.8,0.46189]
[1758881198030,0.78263,3894.4,3893.7,0.3171]
[1758881198226,0.3208,3894.4,3893.8,0.265]
[1758881198435,0.3208,3894.4,3893.9,0.3171]
[1758881198735,8.01078474,3894.9,3894.2,0.3171]
[1758881198736,0.3208,3894.8,3894.2,0.3171]
[1758881198931,0.1319,3894.5,3894.3,0.268]
[1758881199127,0.1319,3894.0,3893.6,0.00738052]
[1758881199328,0.3208,3893.8,3893.7,0.268]
[1758881199536,0.78271,3893.7,3893.6,0.00738052]
[1758881199733,0.78271,3893.7,3893.6,0.11338052]
[1758881199928,0.78271,3893.7,3893.6,0.00738052]
[1758881200129,0.3208,3893.7,3893.6,0.27538052]
[1758881200524,0.1319,3895.5,3893.7,0.3171]
[1758881200728,0.3208,3894.9,3894.5,0.46181]
[1758881200929,7.68090474,3895.5,3894.6,0.268]
[1758881200930,0.59366,3895.0,3894.6,0.268]
[1758881201126,0.3208,3894.9,3894.4,0.46182]
[1758881201334,0.1319,3895.0,3894.5,1.04691]
[1758881201639,0.3208,3894.9,3894.6,0.268]
[1758881201832,0.1319,3895.0,3894.6,0.268]
[1758881202143,0.1319,3895.5,3894.6,0.268]
[1758881202144,0.3208,3894.9,3894.8,0.77888]
[1758881202437,0.46174,3895.2,3894.6,1.0469]
[1758881202633,7.86980474,3895.3,3894.1,0.3171]
[1758881202833,0.1319,3895.0,3894.6,0.3171]
[1758881203034,0.3208,3894.9,3894.7,0.55778]
[1758881203230,0.1319,3895.5,3895.0,0.77885]
[1758881203427,0.5936,3895.5,3895.1,0.5851]
[1758881203735,0.3208,3895.6,3895.4,0.3171]
[1758881204041,0.3208,3895.6,3895.5,0.268]
[1758881205042,0.78252,3895.4,3895.0,40.043]
[1758881205341,0.3208,3895.4,3895.2,0.3171]
[1758881205738,0.3208,3895.4,3895.3,0.268]
[1758881205739,0.78251,3895.4,3895.3,0.268]
[1758881206036,0.3208,3894.9,3894.4,40.043]
[1758881206239,0.3208,3894.4,3894.2,40.043]
[1758881206432,0.1319,3894.5,3893.8,40.043]
[1758881206433,0.46187,3894.1,3893.8,40.043]
[1758881206636,0.3208,3894.0,3893.9,0.268]
[1758881207035,0.3208,3894.5,3894.3,0.3171]
[1758881207244,0.46185,3894.2,3893.9,0.3171]
[1758881207635,0.46185,3894.2,3894.0,0.268]
[1758881207835,0.3208,3894.1,3894.0,0.268]
[1758881208139,0.1319,3894.0,3893.6,0.00738052]
[1758881208331,0.3208,3893.9,3893.8,0.3171]
[1758881208532,0.3208,3894.4,3893.8,0.3171]
[1758881208731,0.3208,3894.4,3894.3,0.3171]
[1758881208934,0.3208,3894.4,3894.3,0.268]
[1758881209145,0.3208,3894.4,3894.3,0.5851]
[1758881209437,0.3208,3894.4,3894.3,0.268]
[1758881209438,0.78263,3894.4,3894.3,0.268]
[1758881209848,0.3208,3894.4,3893.7,40.8]
[1758881210036,0.1319,3895.0,3894.3,0.3171]
[1758881210238,0.3208,3894.9,3894.5,0.46181]
[1758881210637,0.3208,3894.9,3894.6,0.3171]
[1758881210948,0.1319,3895.0,3894.7,0.268]
[1758881211147,0.59366,3895.0,3894.7,0.268]
[1758881211347,0.3208,3894.9,3894.8,0.268]
[1758881212046,0.46171,3895.4,3894.8,0.5851]
[1758881212244,0.46177,3894.9,3894.5,40.048]
[1758881212450,0.3208,3894.8,3894.6,0.268]
[1758881212649,0.1319,3895.5,3894.8,0.3171]
[1758881212845,0.59361,3895.5,3894.9,0.268]
[1758881213045,0.3208,3895.4,3895.1,0.46174]
[1758881213349,0.1319,3895.5,3894.9,0.268]
[1758881213647,0.78245,3895.9,3895.3,0.3171]
[1758881213854,0.3208,3895.8,3895.5,0.3171]
[1758881214045,0.46168,3895.7,3895.5,0.3171]
[1758881214249,0.3208,3895.6,3895.4,0.7297]
[1758881214438,0.3208,3895.9,3895.5,0.1315]
[1758881214638,0.4616,3896.4,3895.9,0.46165]
[1758881214842,0.3208,3896.2,3896.0,0.268]
[1758881215150,0.3208,3896.1,3896.0,0.268]
[1758881215450,7.54900474,3896.6,3895.4,0.4617]
[1758881215451,0.3208,3896.4,3895.4,0.4617]
[1758881215644,0.3208,3895.9,3895.5,0.135]
[1758881215942,0.1319,3896.0,3895.6,0.72968]
[1758881215943,0.59354,3896.0,3895.6,0.72968]
[1758881216144,0.3208,3895.9,3895.6,0.72968]
[1758881216340,0.3208,3895.9,3895.8,0.46165]
[1758881216536,0.3208,3895.9,3895.8,0.77875]
[1758881216744,0.3208,3896.4,3895.7,0.3171]
[1758881217047,0.46155,3896.8,3896.3,0.7787]
[1758881217351,0.3208,3896.5,3896.4,0.5851]
[1758881217741,0.1319,3897.0,3896.7,0.46155]
[1758881217938,0.3208,3896.9,3896.8,0.268]
[1758881218341,0.3208,3897.3,3897.0,0.46151]
[1758881218536,7.54900474,3897.8,3897.0,0.46151]
[1758881218537,0.3208,3897.4,3897.0,0.46151]
[1758881218749,0.46145,3897.6,3897.1,0.4615]
[1758881218937,0.46143,3897.8,3897.2,0.3171]
[1758881219142,7.68090474,3898.0,3896.9,0.3171]
[1758881219454,0.3208,3897.4,3897.1,0.3171]
[1758881219648,0.3208,3897.3,3897.2,0.269]
[1758881220144,0.3208,3897.3,3896.7,0.3171]
[1758881220344,0.46149,3897.3,3896.9,0.46153]
[1758881220542,0.1273,3897.0,3896.3,40.044]
[1758881220739,0.1273,3897.0,3896.4,0.6103]
[1758881220945,7.68090474,3898.0,3896.6,0.3423]
[1758881221144,0.3492,3897.4,3897.3,0.46148]
[1758881221342,0.3492,3897.9,3897.5,0.46145]
[1758881221543,0.3492,3897.9,3897.7,0.46143]
[1758881221751,0.3492,3897.9,3897.8,0.268]
[1758881222051,0.3492,3897.9,3897.4,0.3423]
[1758881222349,0.3492,3897.9,3897.8,0.268]
[1758881222645,7.54900474,3897.9,3897.0,0.46152]
[1758881222848,0.58882,3897.0,3896.4,0.46159]
[1758881223045,0.58882,3897.0,3896.1,0.3423]
[1758881223046,0.1273,3897.0,3896.1,0.3423]
[1758881223345,0.4765,3896.5,3896.4,0.46159]
[1758881223550,0.1273,3897.0,3896.4,0.268]
[1758881223742,0.3492,3897.4,3896.6,0.46156]
[1758881223949,0.3492,3896.9,3896.4,0.46158]
[1758881224150,0.3492,3896.6,3896.5,0.269]
[1758881224342,0.3492,3896.9,3896.5,0.269]
[1758881224547,0.3492,3896.9,3896.7,0.46154]
[1758881224742,0.3492,3896.9,3896.8,0.3423]
[1758881224947,0.3492,3896.9,3896.8,0.269]
[1758881225148,0.3296,3897.4,3896.9,0.46153]
[1758881225454,0.79112,3897.1,3896.8,0.269]
[1758881225752,0.46154,3896.8,3896.5,0.3263]
[1758881225954,0.46156,3896.7,3896.6,0.269]
[1758881226151,0.79116,3896.7,3896.6,0.269]
[1758881226354,0.79116,3896.7,3895.9,0.3263]
[1758881226355,12.54900474,3896.7,3895.9,0.3263]
[1758881226652,0.3296,3896.1,3896.0,40.285]
[1758881227453,0.3296,3896.1,3896.0,0.268]
[1758881227656,0.79123,3896.1,3896.0,0.268]
[1758881228057,1.28741,3897.0,3896.1,0.78792]
[1758881228058,0.79115,3896.8,3896.1,0.78792]
[1758881228350,7.54900474,3898.1,3897.0,0.1315]
[1758881228550,0.1336,3898.0,3896.9,0.78782]
[1758881228752,0.3296,3897.2,3897.0,0.035]
[1758881228957,0.59506,3897.5,3897.1,0.273]
[1758881229354,0.46155,3896.8,3896.4,0.3263]
[1758881229550,0.4632,3896.5,3896.4,40.037]
[1758881229752,0.4632,3896.5,3896.4,40.31]
[1758881230454,0.46158,3896.5,3896.4,40.6363]
[1758881230649,0.46156,3896.7,3896.5,0.3263]
[1758881230850,7.54900474,3897.7,3896.0,0.59313]
[1758881230851,0.46159,3896.4,3896.1,0.3263]
[1758881231051,0.46165,3896.0,3895.9,40.036]
[1758881231258,0.79125,3896.0,3895.5,41.39319]
[1758881231563,1.1539,3896.7,3895.0,0.1315]
[1758881231564,0.46169,3895.6,3895.0,0.1315]
[1758881231858,0.3296,3895.7,3895.1,40.309]
[1758881232056,0.46163,3896.1,3895.2,40.8]
[1758881232267,0.46164,3896.0,3895.5,0.1315]
[1758881232453,0.46164,3896.0,3895.7,0.3263]
[1758881232654,0.46165,3896.0,3895.6,0.73468]
[1758881232853,0.3296,3896.4,3895.7,0.3263]
[1758881233062,0.46166,3895.9,3895.8,0.273]
[1758881233359,0.79126,3895.9,3895.8,0.273]
[1758881233856,0.46162,3896.2,3895.8,0.3263]
[1758881234054,0.3296,3896.4,3895.8,0.5993]
[1758881234360,0.46165,3896.0,3895.8,0.273]
[1758881234553,0.92484,3896.0,3895.9,0.273]
[1758881234964,0.79132,3895.4,3895.2,41.1263]
[1758881235160,0.46172,3895.4,3895.3,0.273]
[1758881235356,0.46167,3895.8,3895.1,0.3263]
[1758881235566,0.46171,3895.4,3895.2,0.273]
[1758881235764,0.3296,3895.3,3895.2,0.273]
[1758881235959,0.3296,3895.7,3894.8,0.3263]
[1758881236164,0.3296,3895.0,3894.9,0.273]
[1758881236659,0.3296,3895.4,3894.5,41.1263]
[1758881236968,0.7914,3894.7,3894.6,0.273]
[1758881237163,0.3296,3894.5,3894.2,0.3263]
[1758881237463,0.3296,3894.3,3894.1,40.8]
[1758881237758,0.79148,3894.0,3893.9,40.039]
[1758881237963,0.79148,3894.0,3893.9,40.312]
[1758881238260,1.15449,3894.7,3893.5,0.13807511]
[1758881238261,0.46191,3893.7,3893.6,0.33368052]
[1758881238451,0.79149,3893.9,3893.6,0.28038052]
[1758881238759,0.46191,3893.8,3893.7,0.3263]
[1758881239160,0.46191,3893.8,3893.7,0.5993]
[1758881239461,0.46188,3894.0,3893.8,0.3263]
[1758881239761,0.1336,3894.5,3893.7,0.273]
[1758881240066,0.46187,3894.1,3893.7,0.273]
[1758881240262,0.46187,3894.1,3893.8,0.273]
[1758881240464,0.79147,3894.1,3893.9,0.3263]
[1758881240762,0.79147,3894.1,3893.8,0.273]
[1758881241167,0.46188,3894.0,3893.9,0.3263]
[1758881241359,0.46188,3894.0,3893.8,0.273]
[1758881241662,0.46188,3894.0,3893.6,40.80738052]
[1758881241663,0.3296,3893.7,3893.6,0.00738052]
[1758881241866,0.3296,3893.7,3893.6,0.28038052]
[1758881242664,0.3296,3894.4,3893.7,0.3263]
[1758881242852,8.83702474,3895.0,3893.7,0.3263]
[1758881243058,0.3296,3894.4,3893.6,0.33368052]
[1758881243266,0.3296,3894.0,3893.8,0.3263]
[1758881243462,0.46187,3894.1,3893.7,0.73391]
[1758881243760,0.46186,3894.2,3893.8,0.3263]
[1758881243956,0.46187,3894.1,3893.9,0.272]
[1758881244156,0.4619,3893.8,3893.7,0.3263]
[1758881244469,0.3296,3893.7,3893.6,40.05638052]
[1758881244662,0.3296,3894.4,3893.7,0.3263]
[1758881244862,0.46184,3894.3,3893.6,40.32838052]
[1758881245159,0.46186,3894.2,3893.9,0.3263]
[1758881245361,0.46187,3894.1,3894.0,0.3263]
[1758881245562,0.3296,3894.5,3894.0,0.3263]
[1758881245764,1.15438,3895.1,3894.0,0.4578]
[1758881246068,0.3296,3894.2,3894.1,0.272]
[1758881246258,0.3296,3894.1,3893.6,0.00738052]
[1758881246564,0.3296,3893.9,3893.7,40.6493]
[1758881246762,0.3296,3894.1,3893.7,40.323]
[1758881246956,0.79147,3894.1,3893.7,40.78491]
[1758881247155,0.79149,3893.9,3893.8,0.272]
[1758881247458,0.3296,3893.9,3893.8,0.272]
[1758881247765,0.3296,3893.9,3893.8,0.5983]
[1758881248070,0.1336,3894.5,3893.6,0.00738052]
[1758881248071,1.48418,3894.4,3893.6,0.00738052]
[1758881248270,0.3296,3893.7,3893.6,0.00738052]
[1758881249068,0.3296,3893.7,3893.6,0.16238052]
[1758881249264,0.3296,3893.7,3893.6,0.27938052]
[1758881249566,0.59548,3894.0,3893.6,0.60568052]
[1758881249863,0.3296,3893.9,3893.7,0.3263]
[1758881250260,0.3296,3893.9,3893.7,0.46191]
[1758881250460,0.3171,3894.2,3894.0,0.3385]
[1758881250671,0.3171,3894.4,3894.1,0.272]
[1758881250860,0.3171,3894.4,3894.2,0.3385]
[1758881251361,0.4619,3893.8,3893.6,0.34588052]
[1758881251567,0.3171,3893.7,3893.6,0.00738052]
[1758881251869,0.3171,3893.7,3893.6,0.27938052]
[1758881252070,0.3171,3893.7,3893.6,0.00738052]
[1758881252372,0.3171,3893.7,3893.6,0.27938052]
[1758881254470,0.3171,3893.7,3893.6,0.61788052]
[1758881256270,0.77899,3893.9,3893.7,0.3385]
[1758881256470,0.4619,3893.8,3893.7,0.3385]
[1758881256671,0.46188,3894.0,3893.8,0.3385]
[1758881256872,1.28815,3894.5,3893.7,0.3385]
[1758881256873,0.4619,3893.8,3893.7,0.3385]
[1758881257072,0.3171,3893.9,3893.8,0.3385]
[1758881258170,0.4619,3893.8,3893.6,0.34588052]
[1758881258375,0.3171,3893.7,3893.6,40.40488052]
[1758881258569,0.3171,3893.7,3893.6,0.34588052]
[1758881258774,0.3171,3893.7,3893.6,40.33738052]
[1758881259473,0.3171,3893.7,3893.6,40.67588052]
[1758881259682,15.1371,3893.7,3892.2,1.37185431]
[1758881259866,0.1347,3892.5,3891.4,0.3385]
[1758881260062,0.3171,3891.6,3891.5,0.272]
[1758881260264,0.3171,3891.6,3891.5,0.6105]
[1758881260562,0.46229,3890.6,3890.3,0.3385]
[1758881260762,0.3171,3890.5,3890.4,0.272]
[1758881260977,0.91403,3891.0,3890.4,0.6105]
[1758881261175,0.3171,3890.9,3889.6,0.3385]
[1758881261361,0.3171,3890.9,3889.5,0.1293]
[1758881261362,0.3171,3890.9,3890.4,0.4623]
[1758881261568,0.3171,3891.4,3890.6,0.3385]
[1758881261774,0.77928,3891.4,3890.6,41.1385]
[1758881261972,0.77928,3891.4,3890.8,0.3385]
[1758881262286,0.1347,3892.0,3891.1,0.3385]
[1758881262464,0.4621,3892.2,3891.6,0.3385]
[1758881262670,0.4621,3892.2,3891.7,0.273]
[1758881262969,0.3171,3892.0,3891.8,0.3385]
[1758881263163,0.1347,3892.5,3891.0,0.4678]
[1758881263164,0.3171,3892.4,3891.0,0.4678]
[1758881263364,0.1347,3892.5,3891.1,40.34]
[1758881263572,0.91386,3892.5,3891.6,0.3385]
[1758881263973,0.46209,3892.3,3891.7,40.34]
[1758881264176,0.4518,3892.5,3891.8,0.274]
[1758881264177,0.3171,3892.4,3891.8,0.274]
[1758881264478,0.3171,3892.4,3892.0,0.46211]
[1758881264679,0.3171,3892.4,3892.2,0.3385]
[1758881264869,0.3171,3892.4,3892.3,0.275]
[1758881265066,0.3171,3892.9,3892.4,0.46206]
[1758881265270,0.3171,3892.9,3892.5,0.46204]
[1758881265471,0.5967,3893.0,3892.6,0.196]
[1758881265775,0.3171,3892.7,3892.6,0.196]
[1758881265966,0.3171,3892.7,3892.6,0.275]
[1758881266673,0.77917,3892.4,3892.0,40.069]
[1758881266873,0.3171,3892.4,3892.1,0.275]
[1758881267171,0.1347,3892.5,3892.2,0.3385]
[1758881267172,0.3171,3892.5,3892.2,0.3385]
[1758881267369,0.3171,3892.5,3892.1,0.3385]
[1758881267572,0.46206,3892.5,3892.2,0.6125]
[1758881267773,0.3171,3892.4,3892.2,0.73608]
[1758881267970,0.1347,3892.5,3891.0,0.4678]
[1758881268174,0.3171,3892.0,3891.5,0.46216]
[1758881268476,0.77922,3892.0,3891.6,0.3385]
[1758881268677,0.3171,3891.9,3891.7,0.275]
[1758881268877,0.3171,3892.0,3891.7,0.275]
[1758881269072,0.1347,3892.5,3891.8,0.3385]
[1758881269269,0.3171,3892.5,3892.0,0.46211]
[1758881269470,0.3171,3892.3,3892.1,0.6135]
[1758881269670,0.3171,3892.6,3892.2,0.275]
[1758881269870,0.1347,3893.0,3892.2,0.275]
[1758881270077,0.46202,3892.8,3892.2,0.275]
[1758881270276,0.3171,3892.6,3892.3,0.6135]
[1758881270476,0.3171,3892.7,3892.3,1.07557]
[1758881270673,0.3171,3893.4,3892.9,0.462]
[1758881270875,0.3171,3893.4,3893.0,0.275]
[1758881271173,0.3171,3893.9,3893.3,0.80045]
[1758881271378,0.3171,3893.9,3893.6,0.46192]
[1758881271676,0.1347,3894.5,3893.8,0.46189]
[1758881271875,0.3171,3894.8,3894.2,0.80034]
[1758881272274,0.3171,3894.9,3894.3,0.46183]
[1758881272581,0.3171,3894.7,3894.4,0.275]
[1758881272776,0.3171,3895.1,3894.5,0.4618]
[1758881272980,0.59646,3895.0,3894.6,0.275]
[1758881273374,0.3171,3894.9,3894.6,0.275]
[1758881273673,0.3171,3895.4,3894.7,0.3385]
[1758881273885,0.3171,3895.4,3895.1,0.3385]
[1758881274081,0.1347,3896.0,3895.2,0.6135]
[1758881274284,0.46167,3895.8,3895.2,0.6135]
[1758881274487,0.3171,3895.9,3895.4,0.4617]
[1758881274689,0.3171,3896.4,3895.5,0.3385]
[1758881274886,0.46166,3895.8,3895.1,0.3385]
[1758881275185,0.46173,3895.3,3894.5,40.9293]
[1758881275383,0.46173,3895.3,3894.6,0.3385]
[1758881275384,0.3171,3895.3,3894.6,0.3385]
[1758881275579,0.3171,3894.9,3894.7,0.275]
[1758881275782,0.3171,3894.9,3894.8,0.275]
[1758881276088,0.3171,3894.9,3894.1,0.3385]
[1758881276274,0.3171,3894.9,3894.5,0.3385]
[1758881276481,0.46173,3895.2,3894.5,0.3385]
[1758881276679,0.3171,3895.3,3894.5,0.3385]
[1758881276680,0.46177,3894.9,3894.5,0.3385]
[1758881276880,0.3171,3895.4,3894.6,0.6135]
[1758881277082,0.3171,3895.4,3894.7,0.3385]
[1758881277387,0.77882,3895.4,3894.6,0.275]
[1758881277589,0.3171,3895.4,3894.9,0.46176]
[1758881277787,0.3171,3895.8,3895.0,0.6135]
[1758881277986,0.77876,3895.8,3895.2,0.46172]
[1758881278186,0.3171,3896.4,3895.4,0.8002]
[1758881278388,0.46162,3896.2,3895.6,0.3385]
[1758881278582,0.46162,3896.2,3895.6,0.80018]
[1758881278777,0.3171,3896.4,3895.6,0.80018]
[1758881278778,0.46163,3896.1,3895.6,0.3385]
[1758881278988,0.46162,3896.2,3895.7,0.3385]
[1758881279292,0.46162,3896.2,3895.6,0.80018]
[1758881279681,0.3171,3896.4,3895.5,0.7428]
[1758881280090,0.46162,3896.2,3895.6,0.46168]
[1758881280286,0.46163,3896.1,3895.5,0.4043]
[1758881280487,0.1347,3896.5,3895.4,40.8]
[1758881280689,0.1381,3896.0,3894.8,40.3804]
[1758881280893,0.1381,3896.0,3894.9,0.275]
[1758881280894,0.46174,3895.2,3894.9,0.275]
[1758881281090,0.3363,3895.0,3894.9,0.275]
[1758881281595,0.9361,3895.5,3894.9,0.46176]
[1758881281790,0.1381,3896.0,3894.9,0.46176]
[1758881281791,0.59974,3896.0,3895.5,0.46169]
[1758881282092,0.3363,3896.4,3895.6,0.275]
[1758881282291,0.79785,3896.8,3896.2,0.78401]
[1758881282590,0.46158,3896.5,3896.3,0.275]
[1758881282798,0.59968,3896.5,3896.4,0.275]
[1758881282994,0.59968,3896.5,3895.7,40.055]
[1758881282995,0.3363,3896.0,3895.7,40.055]
[1758881283288,0.3363,3895.7,3895.4,0.3224]
[1758881283490,0.46164,3896.0,3895.4,0.7841]
[1758881283690,0.93604,3896.0,3895.4,0.7841]
[1758881283996,0.46173,3895.3,3895.0,40.053]
[1758881284192,0.3363,3895.2,3894.9,0.46176]
[1758881284385,0.46167,3895.8,3895.2,0.3224]
[1758881284891,0.4618,3896.5,3895.2,0.3292]
[1758881285089,0.92338,3896.5,3895.9,0.46164]
[1758881285285,0.59968,3896.5,3896.0,0.6042]
[1758881285491,0.46161,3896.3,3896.0,0.275]
[1758881285690,0.3237,3896.1,3896.0,0.275]
[1758881285889,0.78533,3896.1,3895.5,0.79089]
[1758881286191,0.46163,3896.1,3895.6,0.6042]
[1758881286494,0.3237,3895.9,3895.6,0.6042]
[1758881286788,0.1381,3896.5,3895.0,0.1262]
[1758881286789,0.78537,3895.8,3895.2,0.79092]
[1758881286983,0.46168,3895.7,3895.3,40.324]
[1758881287184,0.3237,3895.6,3895.3,40.324]
[1758881287385,0.3237,3895.6,3894.8,0.3292]
[1758881287583,0.1289,3896.0,3894.8,0.3292]
[1758881287584,0.3237,3895.1,3894.9,0.274]
[1758881287790,0.46174,3895.2,3894.9,0.274]
[1758881287791,0.3237,3895.0,3894.9,0.274]
[1758881288188,0.78547,3895.0,3894.9,0.274]
[1758881288393,0.3237,3895.4,3895.1,0.3292]
[1758881288695,0.3237,3895.3,3895.2,0.3292]
[1758881288884,0.3237,3895.2,3894.6,40.049]
[1758881289092,0.3237,3894.8,3894.7,0.274]
[1758881289292,0.3237,3895.4,3894.7,0.6032]
[1758881289490,0.3237,3895.3,3895.0,0.3292]
[1758881289693,0.3237,3895.2,3895.1,0.274]
[1758881289990,0.3237,3895.6,3895.1,0.274]
[1758881290191,0.3237,3895.4,3895.2,0.274]
[1758881290492,0.1289,3895.5,3895.2,0.274]
[1758881290688,0.3237,3895.5,3895.3,1.06491]
[1758881290889,0.3237,3896.2,3895.6,0.46168]
[1758881291094,0.3237,3896.3,3895.0,40.8]
[1758881291286,1.15399,3896.4,3895.1,0.274]
[1758881291287,0.3237,3895.3,3895.1,0.274]
[1758881291487,0.46172,3895.4,3894.7,0.46178]
[1758881291696,0.78544,3895.2,3894.8,0.274]
[1758881291893,0.46178,3894.8,3894.2,0.46185]
[1758881292091,0.1289,3895.5,3893.6,0.3292]
[1758881292092,0.59072,3894.5,3893.6,0.3292]
[1758881292391,0.1289,3894.5,3893.9,40.048]
[1758881292596,0.3237,3894.4,3894.1,0.46186]
[1758881292783,0.3237,3894.4,3894.2,0.274]
[1758881292989,0.3237,3894.9,3894.2,1.06504]
[1758881293188,0.1289,3894.5,3893.8,0.46189]
[1758881293495,0.1289,3894.5,3893.7,40.8]
[1758881293496,0.3237,3894.2,3893.9,0.73588]
[1758881293694,0.3237,3894.2,3894.0,0.79107]
[1758881293994,0.3237,3894.4,3894.2,0.79105]
[1758881294193,0.78548,3894.9,3894.3,0.6032]
[1758881294392,0.3237,3894.9,3894.7,0.79099]
[1758881294699,0.3237,3894.9,3894.8,0.274]
[1758881295093,1.15414,3895.9,3894.8,0.6032]
[1758881295291,1.15414,3895.9,3895.1,0.3292]
[1758881295292,0.46173,3895.3,3895.1,0.3292]
[1758881295492,0.78543,3895.3,3895.2,0.274]
[1758881295889,0.46167,3895.8,3895.2,0.274]
[1758881296090,0.3237,3895.9,3895.4,0.4617]
[1758881296294,0.46166,3895.8,3895.3,0.79091]
[1758881296596,0.91425,3896.0,3895.3,0.3292]
[1758881296897,0.46162,3896.2,3895.9,0.3292]
[1758881297092,0.3237,3895.7,3895.4,0.3292]
[1758881297398,0.3237,3895.7,3895.5,0.46169]
[1758881297594,0.3237,3895.7,3895.6,0.274]
[1758881298295,5.46168,3895.7,3895.6,0.274]
[1758881298689,5.46168,3895.7,3894.6,0.3292]
[1758881298690,0.1289,3895.5,3894.6,0.3292]
[1758881298995,0.1289,3895.5,3894.0,0.1262]
[1758881298996,0.1289,3895.0,3894.0,0.46187]
[1758881299194,0.3237,3894.9,3894.1,0.3292]
[1758881299403,0.1289,3894.5,3894.2,0.274]
[1758881299595,0.78553,3894.4,3894.3,0.274]
[1758881299899,0.3237,3894.4,3894.3,0.274]
[1758881300300,0.3237,3894.4,3894.3,0.6032]
[1758881300497,0.3237,3894.4,3894.3,0.274]
[1758881300886,0.46179,3894.8,3893.6,9.14634849]
[1758881301086,0.46181,3894.6,3894.4,0.3292]
[1758881301290,0.3237,3894.9,3894.2,0.3292]
[1758881301492,0.78553,3894.4,3894.3,0.274]
[1758881301999,0.78557,3894.1,3893.9,40.05]
[1758881302199,0.46186,3894.2,3894.0,0.274]
[1758881302503,0.46183,3894.4,3894.1,0.3292]
[1758881302793,0.3237,3894.5,3894.0,0.274]
[1758881302794,0.46184,3894.3,3894.0,0.274]
[1758881302990,0.78554,3894.3,3894.1,0.3292]
[1758881303298,0.78555,3894.2,3894.0,0.274]
[1758881303499,0.3237,3894.2,3894.0,0.6032]
[1758881303699,0.3237,3894.9,3894.1,0.3292]
[1758881303997,0.1289,3895.0,3894.3,0.3292]
[1758881303998,0.78552,3894.5,3894.3,0.3292]
[1758881304402,0.78556,3894.2,3893.9,0.3292]
[1758881304593,0.3237,3894.1,3894.0,40.326]
[1758881304896,0.3237,3894.3,3894.2,0.46185]
[1758881305096,0.3237,3894.9,3894.2,0.3292]
[1758881305694,0.3237,3894.9,3894.6,0.3292]
[1758881305996,0.1289,3895.5,3894.8,0.3292]
[1758881305997,0.46175,3895.1,3894.8,0.3292]
[1758881306187,0.3237,3894.9,3894.7,1.06499]
[1758881306393,0.78547,3894.9,3894.8,0.274]
[1758881306694,0.46176,3895.0,3894.8,0.6032]
[1758881307092,0.3237,3894.9,3894.8,0.6032]
[1758881307288,0.1289,3895.0,3893.7,0.3292]
[1758881307488,0.1289,3895.0,3893.9,0.274]
[1758881307489,0.46185,3894.2,3893.9,0.274]
[1758881307699,0.3237,3894.0,3893.7,0.79111]
[1758881308002,0.3237,3894.5,3894.3,0.3292]
[1758881308194,0.3237,3894.5,3894.4,0.274]